bitfinex/quotes_BTCUSD_20241002
["timestamp","ask_amount","ask_price","bid_price","bid_amount"]
[1727848553295,0.002,61506.0,61505.0,0.68755905]
[1727848553510,0.002,61506.0,61505.0,0.67355905]
[1727848553732,0.002,61506.0,61505.0,0.65955905]
[1727848553947,0.002,61506.0,61505.0,0.59265905]
[1727848554383,0.002,61506.0,61505.0,0.4279646]
[1727848555055,0.002,61506.0,61505.0,0.4419646]
[1727848555279,0.002,61506.0,61505.0,0.4279646]
[1727848555495,0.002,61506.0,61505.0,0.4269646]
[1727848555720,0.002,61506.0,61505.0,0.4139646]
[1727848555994,0.002,61506.0,61505.0,0.4239646]
[1727848556202,0.002,61506.0,61505.0,0.4369646]
[1727848557726,0.002,61506.0,61505.0,0.3369646]
[1727848557939,0.002,61506.0,61505.0,0.18557896]
[1727848558592,0.002,61506.0,61505.0,0.17557896]
[1727848559038,0.002,61506.0,61505.0,0.17457896]
[1727848559470,0.002,61506.0,61505.0,0.16057896]
[1727848559694,0.002,61506.0,61505.0,0.16557896]
[1727848559945,0.002,61506.0,61505.0,0.16357896]
[1727848560183,0.002,61506.0,61505.0,0.16557896]
[1727848560830,0.003638,61506.0,61505.0,0.16557896]
[1727848561048,0.003638,61506.0,61505.0,0.16357896]
[1727848561488,0.003638,61506.0,61505.0,0.16557896]
[1727848562393,0.003638,61506.0,61505.0,0.16883032]
[1727848562616,0.003638,61506.0,61505.0,0.16783032]
[1727848562842,0.003638,61506.0,61505.0,0.16883032]
[1727848563051,0.003638,61506.0,61505.0,0.16683032]
[1727848563266,0.003638,61506.0,61505.0,0.16983032]
[1727848563704,0.003638,61506.0,61505.0,0.16683032]
[1727848564785,0.003638,61506.0,61505.0,0.16257896]
[1727848565256,0.003638,61506.0,61505.0,0.17257896]
[1727848565914,0.003638,61506.0,61505.0,0.16657896]
[1727848566137,0.003638,61506.0,61505.0,0.75113364]
[1727848566358,0.003638,61506.0,61505.0,0.52117341]
[1727848566589,0.003638,61506.0,61505.0,0.61847341]
[1727848567013,0.003638,61506.0,61505.0,0.61347341]
[1727848567899,0.003638,61506.0,61505.0,0.61047341]
[1727848568114,0.003638,61506.0,61505.0,0.61447341]
[1727848568334,0.003638,61506.0,61505.0,0.62047341]
[1727848568693,0.003638,61506.0,61505.0,0.61047341]
[1727848569187,0.002,61512.0,61505.0,0.61047341]
[1727848569188,0.002,61512.0,61511.0,0.255058]
[1727848569414,0.002,61512.0,61511.0,0.75258894]
[1727848569604,0.002,61512.0,61511.0,0.75674327]
[1727848570125,0.26844009,61523.0,61517.0,0.231045]
[1727848570340,0.24296023,61523.0,61517.0,0.6011899]
[1727848570549,0.24296023,61523.0,61517.0,0.59793945]
[1727848570766,0.24296023,61523.0,61517.0,0.60531001]
[1727848571417,0.24296023,61523.0,61517.0,0.60731001]
[1727848572058,0.24296023,61523.0,61517.0,0.61831001]
[1727848572276,0.24296023,61523.0,61517.0,0.63231001]
[1727848572493,0.24296023,61523.0,61517.0,0.53501001]
[1727848572709,0.003638,61518.0,61517.0,0.53501001]
[1727848577265,0.24460023,61529.0,61528.0,0.331022]
[1727848577484,0.24460023,61529.0,61528.0,0.49571645]
[1727848577966,0.00164,61529.0,61528.0,0.50295331]
[1727848578662,0.00164,61529.0,61528.0,0.50495331]
[1727848578875,0.00164,61529.0,61528.0,0.50895331]
[1727848579512,0.00164,61529.0,61528.0,0.43295331]
[1727848587752,0.00164,61529.0,61528.0,0.26825886]
[1727848587973,0.09894,61529.0,61528.0,0.26825886]
[1727848589912,0.09894,61529.0,61528.0,0.26625886]
[1727848590333,0.09894,61529.0,61528.0,0.26725886]
[1727848590780,0.09894,61529.0,61528.0,0.26625886]
[1727848590920,0.09894,61529.0,61528.0,0.26425886]
[1727848591130,0.09894,61529.0,61528.0,0.26625886]
[1727848591791,0.00164,61529.0,61528.0,0.26225886]
[1727848592005,0.00164,61529.0,61528.0,0.26850901]
[1727848592434,0.00164,61529.0,61528.0,0.26225886]
[1727848592819,0.00164,61529.0,61528.0,0.26425886]
[1727848593321,0.00164,61529.0,61528.0,0.26225886]
[1727848593532,0.00164,61529.0,61528.0,0.26625886]
[1727848593937,0.00164,61529.0,61528.0,0.26825886]
[1727848598968,0.00164,61529.0,61528.0,0.75171354]
[1727848599213,0.00164,61529.0,61528.0,0.50875331]
[1727848599881,0.00164,61529.0,61528.0,0.50675331]
[1727848600319,0.00164,61529.0,61528.0,0.51775331]
[1727848601164,0.00164,61529.0,61528.0,0.51375331]
[1727848601371,0.00164,61529.0,61528.0,0.53088401]
[1727848604070,0.00164,61529.0,61528.0,0.45508401]
[1727848604532,0.00164,61529.0,61528.0,0.45308401]
[1727848604760,0.00164,61529.0,61528.0,0.45508401]
[1727848605196,0.00164,61529.0,61528.0,0.28625886]
[1727848605620,0.00164,61529.0,61528.0,0.26125886]
[1727848607051,0.00164,61529.0,61528.0,0.28425886]
[1727848607811,0.00164,61529.0,61528.0,0.18625886]
[1727848608996,0.00164,61529.0,61528.0,0.35095331]
[1727848613992,0.00164,61529.0,61528.0,0.52955331]
[1727848616427,0.00164,61529.0,61528.0,0.52755331]
[1727848617102,0.00164,61529.0,61528.0,0.52955331]
[1727848623673,0.001638,61535.0,61534.0,0.155009]
[1727848624036,0.001638,61535.0,61534.0,0.49335935]
[1727848624247,0.001638,61535.0,61534.0,0.65621791]
[1727848624685,0.001638,61535.0,61534.0,0.65721791]
[1727848624905,0.001638,61535.0,61534.0,0.75671791]
[1727848625070,0.22760422,61543.0,61542.0,0.30637764]
[1727848625435,0.14562461,61549.0,61544.0,0.131988]
[1727848625658,0.14562461,61549.0,61548.0,0.30636464]
[1727848625885,0.14562461,61549.0,61548.0,0.47105909]
[1727848626107,0.14562461,61549.0,61548.0,0.55606889]
[1727848626591,0.0485685,61553.0,61552.0,0.131971]
[1727848626810,0.0485685,61553.0,61552.0,0.44805109]
[1727848627026,0.0485685,61553.0,61552.0,0.47105109]
[1727848627241,0.0485685,61553.0,61552.0,0.31276644]
[1727848627455,0.33766023,61558.0,61553.0,0.154969]
[1727848627710,0.33766023,61558.0,61557.0,0.002]
[1727848627928,0.33766023,61558.0,61557.0,0.15496]
[1727848628141,0.0947,61558.0,61557.0,0.15496]
[1727848628368,0.0947,61558.0,61557.0,0.0314098]
[1727848628585,0.1771,61558.0,61557.0,0.0314098]
[1727848629013,0.20256412,61558.0,61557.0,0.0314098]
[1727848629218,0.33252212,61558.0,61557.0,0.0334098]
[1727848629445,0.20256412,61558.0,61557.0,0.031]
[1727848629669,0.20256412,61558.0,61557.0,0.029]
[1727848629883,0.20256412,61558.0,61557.0,0.03130999]
[1727848631263,0.20338312,61558.0,61557.0,0.03130999]
[1727848631494,0.33334112,61558.0,61557.0,0.03130999]
[1727848631761,0.20338312,61558.0,61557.0,0.03130999]
[1727848631987,0.20338312,61558.0,61557.0,0.03132408]
[1727848632211,0.20338312,61558.0,61557.0,0.16128408]
[1727848632438,0.095519,61558.0,61557.0,0.16128408]
[1727848634274,0.000819,61558.0,61557.0,0.16128408]
[1727848634493,0.000819,61558.0,61557.0,0.16327776]
[1727848634726,0.000819,61558.0,61557.0,0.16427776]
[1727848635182,0.000819,61558.0,61557.0,0.16228408]
[1727848635424,0.000819,61558.0,61557.0,0.16128408]
[1727848635879,0.000819,61558.0,61557.0,0.16728408]
[1727848637652,0.000819,61558.0,61557.0,0.33197853]
[1727848644784,0.000819,61558.0,61557.0,0.41137853]
[1727848645020,0.000819,61558.0,61557.0,0.51137853]
[1727848646774,0.000819,61558.0,61557.0,0.50937853]
[1727848647040,0.000819,61558.0,61557.0,0.51137853]
[1727848651954,0.000819,61558.0,61557.0,0.43197853]
[1727848663716,0.000819,61558.0,61557.0,0.53112699]
[1727848664694,0.000819,61558.0,61557.0,0.36643254]
[1727848666603,0.000819,61558.0,61557.0,0.53112699]
[1727848666840,0.000819,61558.0,61557.0,0.60952699]
[1727848667786,0.000819,61558.0,61557.0,0.66142263]
[1727848670516,0.000819,61558.0,61557.0,0.90438286]
[1727848670739,0.000819,61558.0,61557.0,0.66142263]
[1727848671641,0.000819,61558.0,61557.0,0.65542263]
[1727848672030,0.000819,61558.0,61557.0,0.66942263]
[1727848673015,0.000819,61558.0,61557.0,0.68242263]
[1727848679304,0.000819,61558.0,61557.0,0.66842263]
[1727848679520,0.000819,61558.0,61557.0,0.68242263]
[1727848680187,0.000819,61558.0,61557.0,0.66942263]
[1727848680645,0.000819,61558.0,61557.0,0.58002263]
[1727848680883,0.000819,61558.0,61557.0,0.58202263]
[1727848681826,0.000819,61558.0,61557.0,0.56802263]
[1727848682052,0.000819,61558.0,61557.0,0.57702263]
[1727848682244,0.000819,61558.0,61557.0,0.59002263]
[1727848682491,0.000819,61558.0,61557.0,0.60102263]
[1727848682709,0.000819,61558.0,61557.0,0.58802263]
[1727848682980,0.000819,61558.0,61557.0,0.59002263]
[1727848683196,0.000819,61558.0,61557.0,0.60102263]
[1727848683876,0.000819,61558.0,61557.0,0.58802263]
[1727848684324,0.000819,61558.0,61557.0,0.59702263]
[1727848689769,0.000819,61558.0,61557.0,0.54510855]
[1727848693860,0.000819,61558.0,61557.0,0.62630855]
[1727848694079,0.00164,61562.0,61561.0,0.35408202]
[1727848694301,0.00164,61562.0,61561.0,0.51877647]
[1727848694512,0.00164,61562.0,61561.0,0.60513694]
[1727848695222,0.00164,61562.0,61561.0,0.70043694]
[1727848695613,0.00164,61562.0,61561.0,0.75229328]
[1727848695860,0.00164,61562.0,61561.0,0.76629328]
[1727848696708,0.00164,61562.0,61561.0,0.78229328]
[1727848701823,0.00164,61562.0,61561.0,0.78729328]
[1727848702702,0.00164,61563.0,61562.0,0.25695]
[1727848702938,0.00164,61563.0,61562.0,0.50184445]
[1727848703633,0.00164,61563.0,61562.0,0.51300492]
[1727848704065,0.00164,61563.0,61562.0,0.52700492]
[1727848704926,0.00164,61563.0,61562.0,0.54100492]
[1727848705374,0.24296023,61578.0,61574.0,0.231924]
[1727848705603,0.24296023,61578.0,61574.0,0.62980481]
[1727848705604,0.07454184,61577.0,61574.0,0.62980481]
[1727848706065,0.07454184,61577.0,61574.0,0.63596528]
[1727848707389,0.07454184,61577.0,61574.0,0.64896528]
[1727848707642,0.07454184,61577.0,61574.0,0.58976528]
[1727848707869,0.00164,61577.0,61576.0,0.25492]
[1727848708077,0.00164,61577.0,61576.0,0.41961445]
[1727848708293,0.00164,61577.0,61576.0,0.42161445]
[1727848708508,0.00164,61577.0,61576.0,0.42777492]
[1727848709223,0.00164,61577.0,61576.0,0.44077492]
[1727848709434,0.00164,61577.0,61576.0,0.45177492]
[1727848712242,0.00164,61577.0,61576.0,0.44977492]
[1727848714049,0.00164,61577.0,61576.0,0.45404698]
[1727848717607,0.00164,61577.0,61576.0,0.55509605]
[1727848718018,0.00164,61577.0,61576.0,0.54409605]
[1727848718425,0.00164,61577.0,61576.0,0.54509605]
[1727848718668,0.00164,61577.0,61576.0,0.55909605]
[1727848719084,0.00164,61577.0,61576.0,0.55709605]
[1727848719495,0.00164,61577.0,61576.0,0.45804698]
[1727848719845,0.00164,61577.0,61576.0,0.55709605]
[1727848722361,0.00164,61577.0,61576.0,0.55909605]
[1727848724184,0.00164,61577.0,61576.0,0.55709605]
[1727848724412,0.00164,61577.0,61576.0,0.55909605]
[1727848725519,0.00164,61577.0,61576.0,0.55709605]
[1727848727181,0.00164,61577.0,61576.0,0.55909605]
[1727848731500,0.00164,61577.0,61576.0,0.55509605]
[1727848731732,0.00164,61577.0,61576.0,0.55709605]
[1727848742074,0.00164,61577.0,61576.0,0.45804698]
[1727848742314,0.09564,61577.0,61576.0,0.53409605]
[1727848742545,0.00164,61577.0,61576.0,0.53409605]
[1727848743446,0.00164,61577.0,61576.0,0.55709605]
[1727848760193,0.00164,61577.0,61576.0,0.55509605]
[1727848761287,0.00164,61577.0,61576.0,0.55709605]
[1727848764174,0.00164,61577.0,61576.0,0.55509605]
[1727848764386,0.00164,61577.0,61576.0,0.55709605]
[1727848767087,0.00164,61577.0,61576.0,0.55909605]
[1727848767557,0.02545145,61583.0,61582.0,0.004]
[1727848767770,0.29164091,61590.0,61582.0,0.004]
[1727848767771,0.24296023,61590.0,61589.0,0.154893]
[1727848767986,0.24296023,61590.0,61589.0,0.51863652]
[1727848768200,0.07303504,61594.0,61590.0,0.124]
[1727848768419,0.07303504,61594.0,61590.0,0.41958545]
[1727848768859,0.07303504,61594.0,61590.0,0.42551316]
[1727848769074,0.0963,61596.0,61590.0,0.42551316]
[1727848769733,0.0963,61596.0,61590.0,0.42751316]
[1727848769977,0.0963,61596.0,61590.0,0.43451316]
[1727848770425,0.14418068,61600.0,61590.0,0.51241316]
[1727848770643,0.0955,61600.0,61590.0,0.51241316]
[1727848771080,0.0955,61600.0,61590.0,0.51741316]
[1727848771522,0.0955,61600.0,61590.0,0.51241316]
[1727848771710,0.0955,61600.0,61590.0,0.52641316]
[1727848772174,0.0955,61600.0,61590.0,0.52365801]
[1727848772387,0.0955,61600.0,61590.0,0.53665801]
[1727848772808,0.0955,61600.0,61590.0,0.52365801]
[1727848773013,0.0955,61600.0,61590.0,0.53765801]
[1727848774688,0.0955,61600.0,61590.0,0.45975801]
[1727848778766,0.001638,61591.0,61590.0,0.45975801]
[1727848779667,0.32586023,61603.0,61602.0,0.131865]
[1727848779668,0.24296023,61603.0,61602.0,0.131865]
[1727848779916,0.24296023,61603.0,61602.0,0.41860852]
[1727848780150,0.24296023,61603.0,61602.0,0.42436689]
[1727848780398,0.0955,61604.0,61603.0,0.154863]
[1727848780704,0.0955,61604.0,61603.0,0.31955745]
[1727848781228,0.0955,61604.0,61603.0,0.32531582]
[1727848782768,0.0955,61604.0,61603.0,0.25967044]
[1727848783411,0.0955,61604.0,61603.0,0.26667044]
[1727848783625,0.0955,61604.0,61603.0,0.27167044]
[1727848785869,0.096319,61604.0,61603.0,0.27167044]
[1727848798611,0.096319,61604.0,61603.0,0.17262137]
[1727848799320,0.096319,61604.0,61603.0,0.4135816]
[1727848799551,0.096319,61604.0,61603.0,0.27167044]
[1727848800470,0.096319,61604.0,61603.0,0.17262137]
[1727848800717,0.096319,61604.0,61603.0,0.27167044]
[1727848802709,0.096319,61604.0,61603.0,0.43636489]
[1727848802929,0.000819,61604.0,61603.0,0.43636489]
[1727848803715,0.000819,61604.0,61603.0,0.53136489]
[1727848804166,0.000819,61604.0,61603.0,0.54036489]
[1727848804433,0.04856054,61618.0,61603.0,0.54036489]
[1727848804434,0.04856054,61618.0,61617.0,0.152834]
[1727848804654,0.04856054,61618.0,61617.0,0.25188307]
[1727848804893,0.04856054,61618.0,61617.0,0.25388307]
[1727848805591,0.000819,61620.0,61619.0,0.002]
[1727848805852,0.172219,61620.0,61619.0,0.002]
[1727848806311,0.0903,61619.0,61617.0,0.007]
[1727848806541,0.0903,61617.0,61614.0,0.261678]
[1727848806770,0.0903,61617.0,61611.0,0.25969]
[1727848806771,0.220134,61617.0,61616.0,0.002]
[1727848807005,0.0903,61616.0,61612.0,0.282689]
[1727848807252,0.0843,61616.0,61615.0,0.154838]
[1727848808478,0.0843,61616.0,61615.0,0.163838]
[1727848808977,0.0843,61616.0,61615.0,0.154838]
[1727848809213,0.0843,61616.0,61615.0,0.160838]
[1727848809446,0.0903,61616.0,61615.0,0.154838]
[1727848809666,0.006,61616.0,61615.0,0.161838]
[1727848809893,0.006819,61616.0,61615.0,0.167838]
[1727848810348,0.006819,61616.0,61615.0,0.160838]
[1727848810599,0.006819,61616.0,61615.0,0.164838]
[1727848812727,0.006819,61616.0,61615.0,0.154838]
[1727848812951,0.006819,61616.0,61615.0,0.158838]
[1727848813411,0.006819,61616.0,61615.0,0.157838]
[1727848813884,0.006819,61616.0,61615.0,0.32753245]
[1727848814158,0.006819,61616.0,61615.0,0.57049268]
[1727848814388,0.000819,61620.0,61619.0,0.23183]
[1727848814612,0.000819,61620.0,61619.0,0.60177352]
[1727848815091,0.000819,61620.0,61619.0,0.60377352]
[1727848815567,0.000819,61620.0,61619.0,0.70787352]
[1727848815807,0.000819,61620.0,61619.0,0.69887352]
[1727848816026,0.030819,61620.0,61619.0,0.69887352]
[1727848816328,0.030819,61620.0,61619.0,0.72687352]
[1727848816546,0.030819,61620.0,61619.0,0.71287352]
[1727848816776,0.030819,61620.0,61619.0,0.59982445]
[1727848816996,0.030819,61620.0,61619.0,0.69187352]
[1727848817215,0.030819,61620.0,61619.0,0.71087352]
[1727848817680,0.030819,61620.0,61619.0,0.7681526]
[1727848818162,0.030819,61620.0,61619.0,0.7821526]
[1727848818912,0.030819,61620.0,61619.0,0.7541526]
[1727848819127,0.030819,61620.0,61619.0,0.7841526]
[1727848819587,0.23971495,61638.0,61619.0,0.7841526]
[1727848819588,0.00333333,61638.0,61637.0,0.025]
[1727848819802,0.00333333,61638.0,61637.0,0.30551066]
[1727848820017,0.00333333,61638.0,61637.0,0.31090859]
[1727848821314,0.00333333,61638.0,61637.0,0.31390859]
[1727848821747,0.00333333,61638.0,61637.0,0.41390859]
[1727848821979,0.00333333,61638.0,61637.0,0.41090859]
[1727848822410,0.00333333,61638.0,61637.0,0.43090859]
[1727848822645,0.00333333,61638.0,61637.0,0.41990859]
[1727848822919,0.00333333,61638.0,61637.0,0.42490859]
[1727848823136,0.00333333,61638.0,61637.0,0.44303071]
[1727848823580,0.01333333,61638.0,61637.0,0.44303071]
[1727848826307,0.01333333,61638.0,61637.0,0.18818993]
[1727848826600,0.01113333,61638.0,61637.0,0.16518993]
[1727848828015,0.01113333,61638.0,61637.0,0.18818993]
[1727848828271,0.01113333,61638.0,61637.0,0.17418993]
[1727848828525,0.01113333,61638.0,61637.0,0.18318993]
[1727848828757,0.01113333,61638.0,61637.0,0.16918993]
[1727848828975,0.01113333,61638.0,61637.0,0.18018993]
[1727848829199,0.01113333,61638.0,61637.0,0.17118993]
[1727848829444,0.01113333,61638.0,61637.0,0.17618993]
[1727848829672,0.01113333,61638.0,61637.0,0.18318993]
[1727848830391,0.23892333,61638.0,61637.0,0.03039793]
[1727848830618,0.31962333,61638.0,61637.0,0.03039793]
[1727848830849,0.34505277,61638.0,61637.0,0.025]
[1727848831076,0.31962333,61638.0,61637.0,0.023]
[1727848831308,0.31962333,61638.0,61637.0,0.018]
[1727848831790,0.18983333,61638.0,61636.0,0.002]
[1727848832057,0.129792,61637.0,61636.0,0.002]
[1727848832552,0.19083333,61638.0,61637.0,0.002]
[1727848832778,0.32062333,61638.0,61637.0,0.002]
[1727848833004,0.31962333,61638.0,61637.0,0.002]
[1727848834152,0.34505437,61638.0,61637.0,0.002]
[1727848834350,0.31962333,61638.0,61637.0,0.002]
[1727848834588,0.32044333,61638.0,61637.0,0.002]
[1727848835666,0.32144333,61638.0,61637.0,0.002]
[1727848836874,0.45123433,61638.0,61635.0,0.002]
[1727848837247,0.129794,61636.0,61634.0,0.002]
[1727848837850,0.47666565,61638.0,61634.0,0.002]
[1727848838137,0.129792,61637.0,61634.0,0.131798]
[1727848838358,0.47666565,61638.0,61631.0,0.023]
[1727848838359,0.259593,61635.0,61631.0,0.023]
[1727848838584,0.1787,61636.0,61631.0,0.023]
[1727848838829,0.129796,61635.0,61632.0,0.129801]
[1727848839050,0.129796,61635.0,61632.0,0.13518285]
[1727848839703,0.129796,61635.0,61632.0,0.00538185]
[1727848839919,0.129796,61635.0,61631.0,0.154803]
[1727848840121,0.129796,61635.0,61633.0,0.00538185]
[1727848840231,0.129798,61634.0,61631.0,0.025]
[1727848840471,0.259592,61635.0,61632.0,0.0074195]
[1727848840681,0.1298,61633.0,61632.0,0.0074195]
[1727848840906,0.2278,61633.0,61632.0,0.002]
[1727848841843,0.129813,61627.0,61626.0,0.025]
[1727848842082,0.1787,61627.0,61626.0,0.00741944]
[1727848842296,0.0807,61633.0,61626.0,0.1811381]
[1727848842531,0.01195333,61638.0,61637.0,0.152792]
[1727848842777,0.01195333,61638.0,61637.0,0.30351066]
[1727848842997,0.01195333,61638.0,61637.0,0.30551066]
[1727848843222,0.01195333,61638.0,61637.0,0.3109596]
[1727848845530,0.01195333,61638.0,61637.0,0.3119596]
[1727848846204,0.01195333,61638.0,61637.0,0.3149596]
[1727848846886,0.01195333,61638.0,61637.0,0.57675405]
[1727848847780,0.01195333,61638.0,61637.0,0.57739205]
[1727848848008,0.01195333,61638.0,61637.0,0.58739205]
[1727848848226,0.01195333,61638.0,61637.0,0.68739205]
[1727848848687,0.01195333,61638.0,61637.0,0.67739205]
[1727848848890,0.01195333,61638.0,61637.0,0.68739205]
[1727848849104,0.01195333,61638.0,61637.0,0.68639205]
[1727848849330,0.01195333,61638.0,61637.0,0.69639205]
[1727848849595,0.01195333,61638.0,61637.0,0.68639205]
[1727848850030,0.01195333,61638.0,61637.0,0.69839205]
[1727848850250,0.01195333,61638.0,61637.0,0.69639205]
[1727848850901,0.01195333,61638.0,61637.0,0.68639205]
[1727848851318,0.01195333,61638.0,61637.0,0.69639205]
[1727848851757,0.01195333,61638.0,61637.0,0.68639205]
[1727848851955,0.01195333,61638.0,61637.0,0.69939205]
[1727848852164,0.01195333,61638.0,61637.0,0.68739205]
[1727848852378,0.01195333,61638.0,61637.0,0.70339205]
[1727848852913,0.01195333,61638.0,61637.0,0.70139205]
[1727848853358,0.01195333,61638.0,61637.0,0.70565557]
[1727848854878,0.01195333,61638.0,61637.0,0.60855557]
[1727848862054,0.01195333,61638.0,61637.0,0.33483691]
[1727848862290,0.01195333,61638.0,61637.0,0.33057339]
[1727848863400,0.01195333,61638.0,61637.0,0.35357339]
[1727848863613,0.01195333,61638.0,61637.0,0.3576866]
[1727848866051,0.01195333,61638.0,61637.0,0.4391866]
[1727848867757,0.01195333,61638.0,61637.0,0.5391866]
[1727848868849,0.01195333,61638.0,61637.0,0.5251866]
[1727848869070,0.01195333,61638.0,61637.0,0.5391866]
[1727848869275,0.01195333,61638.0,61637.0,0.5261866]
[1727848869715,0.01195333,61638.0,61637.0,0.5241866]
[1727848869954,0.01195333,61638.0,61637.0,0.5401866]
[1727848870183,0.01195333,61638.0,61637.0,0.5421866]
[1727848872102,0.01195333,61638.0,61637.0,0.5281866]
[1727848872314,0.01195333,61638.0,61637.0,0.5331866]
[1727848872564,0.01195333,61638.0,61637.0,0.5471866]
[1727848872998,0.01195333,61638.0,61637.0,0.5331866]
[1727848873427,0.01195333,61638.0,61637.0,0.5471866]
[1727848873845,0.01195333,61638.0,61637.0,0.5331866]
[1727848874469,0.01195333,61638.0,61637.0,0.5471866]
[1727848874665,0.01195333,61638.0,61637.0,0.6273866]
[1727848874916,0.01195333,61638.0,61637.0,0.6413866]
[1727848877751,0.24378023,61653.0,61652.0,0.002]
[1727848877974,0.00082,61653.0,61652.0,0.57017311]
[1727848878416,0.00082,61653.0,61652.0,0.57488522]
[1727848878854,0.00082,61653.0,61652.0,0.81784545]
[1727848879070,0.00082,61653.0,61652.0,0.65308522]
[1727848879280,0.00082,61653.0,61652.0,0.66708522]
[1727848879728,0.00082,61653.0,61652.0,0.67408522]
[1727848880164,0.00082,61653.0,61652.0,0.66508522]
[1727848880391,0.00082,61653.0,61652.0,0.65108522]
[1727848880593,0.00082,61653.0,61652.0,0.58888522]
[1727848880822,0.00082,61653.0,61652.0,0.60288522]
[1727848881696,0.00082,61653.0,61652.0,0.58888522]
[1727848881914,0.00082,61653.0,61652.0,0.59299249]
[1727848882530,0.00082,61653.0,61652.0,0.60599249]
[1727848883048,0.00082,61653.0,61652.0,0.60399249]
[1727848883609,0.00082,61653.0,61652.0,0.60599249]
[1727848884396,0.00082,61653.0,61652.0,0.60188522]
[1727848887201,0.00082,61653.0,61652.0,0.45116656]
[1727848887415,0.00082,61653.0,61652.0,0.60188522]
[1727848887624,0.00082,61653.0,61652.0,0.59988522]
[1727848887896,0.00082,61653.0,61652.0,0.60188522]
[1727848888083,0.00082,61653.0,61652.0,0.59988522]
[1727848890266,0.00082,61653.0,61652.0,0.45116656]
[1727848891230,0.09952,61653.0,61652.0,0.45116656]
[1727848892462,0.09952,61653.0,61652.0,0.28647211]
[1727848898036,0.09952,61653.0,61652.0,0.18647211]
[1727848903432,0.09952,61653.0,61652.0,0.05471211]
[1727848903690,0.09952,61653.0,61652.0,0.18447211]
[1727848903902,0.09952,61653.0,61652.0,0.18647211]
[1727848904341,0.09952,61653.0,61652.0,0.02971211]
[1727848904766,0.09952,61653.0,61652.0,0.03171211]
[1727848904979,0.09952,61653.0,61652.0,0.03571211]
[1727848905203,0.09952,61653.0,61652.0,0.03371211]
[1727848905627,0.09952,61653.0,61652.0,0.03071211]
[1727848905857,0.09952,61653.0,61652.0,0.16347211]
[1727848906081,0.09952,61653.0,61652.0,0.03371211]
[1727848908318,0.09952,61653.0,61652.0,0.03171211]
[1727848908510,0.09952,61653.0,61652.0,0.03371211]
[1727848910385,0.09952,61653.0,61652.0,0.03271211]
[1727848911062,0.09952,61653.0,61652.0,0.02971211]
[1727848911535,0.09952,61653.0,61652.0,0.16147211]
[1727848914089,0.00082,61653.0,61652.0,0.26033038]
[1727848914309,0.00082,61653.0,61652.0,0.52502483]
[1727848915026,0.00082,61653.0,61652.0,0.52302483]
[1727848915487,0.00082,61653.0,61652.0,0.53402483]
[1727848915707,0.00082,61653.0,61652.0,0.53202483]
[1727848915921,0.00082,61653.0,61652.0,0.54302483]
[1727848917633,0.00082,61653.0,61652.0,0.59474395]
[1727848920438,0.00082,61653.0,61652.0,0.59903975]
[1727848925570,0.00082,61653.0,61652.0,0.34846236]
[1727848930330,0.09422,61658.0,61657.0,0.13175]
[1727848930542,0.09422,61658.0,61657.0,0.15475]
[1727848930811,0.09422,61658.0,61657.0,0.15942132]
[1727848932605,0.09422,61658.0,61657.0,0.16342132]
[1727848933135,0.09422,61658.0,61657.0,0.16942132]
[1727848933951,0.09422,61658.0,61657.0,0.16542132]
[1727848934376,0.09422,61658.0,61657.0,0.15942132]
[1727848935965,0.09422,61658.0,61657.0,0.16542132]
[1727848936179,0.09422,61658.0,61657.0,0.16142132]
[1727848936593,0.09422,61658.0,61657.0,0.15942132]
[1727848936805,0.09422,61658.0,61657.0,0.16342132]
[1727848937438,0.09422,61658.0,61657.0,0.15942132]
[1727848937652,0.301067,61658.0,61657.0,0.00467132]
[1727848937868,0.301067,61658.0,61657.0,0.00667132]
[1727848938096,0.301067,61658.0,61657.0,0.002]
[1727848939006,0.17132,61658.0,61654.0,0.002]
[1727848939211,0.0927,61655.0,61654.0,0.002]
[1727848939625,0.0927,61655.0,61651.0,0.002]
[1727848939852,0.1698,61653.0,61651.0,0.002]
[1727848940288,0.1698,61653.0,61651.0,0.131761]
[1727848940755,0.1698,61653.0,61651.0,0.002]
[1727848940970,0.0927,61651.0,61650.0,0.002025]
[1727848942525,0.0927,61651.0,61650.0,0.131789]
[1727848943400,0.0927,61651.0,61650.0,0.003025]
[1727848944037,0.0927,61651.0,61650.0,0.00773687]
[1727848945505,0.0937,61651.0,61650.0,0.13950087]
[1727848945915,0.0927,61651.0,61650.0,0.13850087]
[1727848946339,0.0937,61651.0,61650.0,0.13850087]
[1727848947628,0.16665159,61651.0,61650.0,0.13850087]
[1727848951373,0.0937,61651.0,61650.0,0.13850087]
[1727848954781,0.001,61651.0,61650.0,0.16313887]
[1727848955872,0.04861707,61653.0,61652.0,0.13176]
[1727848956316,0.04861707,61653.0,61652.0,0.13651041]
[1727848956964,0.14631707,61653.0,61652.0,0.13651041]
[1727848957837,0.14631707,61653.0,61652.0,0.13951041]
[1727848958034,0.0977,61653.0,61652.0,0.13951041]
[1727848958239,0.0977,61653.0,61652.0,0.14051041]
[1727848958650,0.0977,61653.0,61652.0,0.13951041]
[1727848959237,0.0977,61653.0,61652.0,0.13651041]
[1727848959439,0.0977,61653.0,61652.0,0.13751041]
[1727848967710,0.0977,61653.0,61652.0,0.00575041]
[1727848967950,0.54840837,61653.0,61652.0,0.00575041]
[1727848968387,0.54840837,61653.0,61652.0,0.001]
[1727848969289,0.54840837,61653.0,61650.0,0.003663]
[1727848969290,0.229762,61651.0,61650.0,0.003663]
[1727848969507,0.326962,61651.0,61650.0,0.003663]
[1727848971010,0.326962,61651.0,61650.0,0.004663]
[1727848971805,0.52834484,61651.0,61650.0,0.005663]
[1727848972067,0.52834484,61651.0,61650.0,0.004663]
[1727848972264,0.52834484,61651.0,61650.0,0.005663]
[1727848972265,0.53634484,61651.0,61650.0,0.005663]
[1727848973307,0.52834484,61651.0,61650.0,0.004663]
[1727848973794,0.68198916,61651.0,61650.0,0.005663]
[1727848974047,0.84668361,61651.0,61650.0,0.005663]
[1727848974268,0.92238361,61651.0,61650.0,0.005663]
[1727848975472,1.05727122,61651.0,61650.0,0.005663]
[1727848975733,0.77673929,61651.0,61650.0,0.005663]
[1727848976413,0.80216936,61651.0,61650.0,0.005663]
[1727848976675,1.00222492,61651.0,61650.0,0.005663]